bitfinex/quotes_BTCUSD_20241124
["timestamp","ask_amount","ask_price","bid_price","bid_amount"]
[1732461609076,0.39787637,96745.0,96739.0,0.0017146]
[1732461611479,1.89787637,96745.0,96739.0,0.0017146]
[1732461613985,1.89987637,96745.0,96739.0,0.0017146]
[1732461614231,1.89787637,96745.0,96739.0,0.0017146]
[1732461614432,0.39987637,96745.0,96739.0,0.0017146]
[1732461614890,1.89787637,96745.0,96739.0,0.0017146]
[1732461616238,1.89987637,96745.0,96739.0,0.0017146]
[1732461616471,0.39987637,96745.0,96739.0,0.0017146]
[1732461616725,0.70238294,96745.0,96739.0,0.0017146]
[1732461616949,2.20238294,96745.0,96739.0,0.0017146]
[1732461617421,2.24798294,96745.0,96739.0,0.0017146]
[1732461617633,2.32708294,96745.0,96744.0,6e-07]
[1732461620425,2.52708294,96745.0,96744.0,6e-07]
[1732461620857,2.52708294,96745.0,96739.0,0.0017146]
[1732461620858,0.732469,96740.0,96739.0,6e-07]
[1732461621067,0.83448327,96740.0,96739.0,6e-07]
[1732461621315,0.88208327,96740.0,96739.0,6e-07]
[1732461622418,2.38208327,96740.0,96739.0,6e-07]
[1732461625496,2.48005263,96740.0,96739.0,6e-07]
[1732461625709,2.27805263,96740.0,96739.0,6e-07]
[1732461625951,2.47805263,96740.0,96739.0,6e-07]
[1732461626177,2.27805263,96740.0,96739.0,6e-07]
[1732461626599,2.48005263,96740.0,96739.0,6e-07]
[1732461626803,2.47805263,96740.0,96739.0,6e-07]
[1732461627030,2.27805263,96740.0,96739.0,6e-07]
[1732461627688,2.28005263,96740.0,96739.0,6e-07]
[1732461627900,2.48005263,96740.0,96739.0,6e-07]
[1732461628757,2.29892784,96740.0,96739.0,6e-07]
[1732461628966,2.20295848,96740.0,96739.0,6e-07]
[1732461629182,2.20095848,96740.0,96739.0,6e-07]
[1732461629403,2.40095848,96740.0,96739.0,6e-07]
[1732461629839,2.20095848,96740.0,96739.0,6e-07]
[1732461630049,2.40095848,96740.0,96739.0,6e-07]
[1732461630723,1.87625848,96740.0,96739.0,6e-07]
[1732461631415,0.22625848,96740.0,96739.0,6e-07]
[1732461631737,0.20538327,96740.0,96739.0,6e-07]
[1732461640569,0.24793699,96740.0,96739.0,6e-07]
[1732461641038,0.14592272,96740.0,96739.0,6e-07]
[1732461644862,0.0017146,96745.0,96741.0,0.082695]
[1732461645095,0.0017146,96745.0,96742.0,0.023]
[1732461645344,0.0017146,96745.0,96739.0,0.1263006]
[1732461645345,0.103368,96741.0,96740.0,0.023]
[1732461646087,0.206733,96743.0,96739.0,6e-07]
[1732461646088,0.103369,96740.0,96739.0,6e-07]
[1732461647284,0.24676368,96740.0,96739.0,6e-07]
[1732461648683,0.24847868,96740.0,96739.0,6e-07]
[1732461667336,0.105084,96740.0,96739.0,6e-07]
[1732461668539,0.001715,96740.0,96739.0,0.1040006]
[1732461668764,0.001715,96740.0,96739.0,0.2323966]
[1732461669228,0.206697,96760.0,96744.0,0.082692]
[1732461669450,0.01076424,96771.0,96744.0,0.082692]
[1732461669451,0.01076424,96771.0,96744.0,0.232392]
[1732461669688,0.01076424,96771.0,96744.0,0.74419944]
[1732461670142,0.01076424,96771.0,96769.0,0.023]
[1732461670603,0.01076424,96771.0,96768.0,0.1267]
[1732461670604,0.01076424,96771.0,96770.0,0.023]
[1732461670820,0.01076424,96771.0,96769.0,0.023]
[1732461671285,0.01076424,96771.0,96770.0,0.023]
[1732461671733,0.103335,96773.0,96771.0,0.023]
[1732461671946,0.103335,96772.0,96770.0,0.023]
[1732461672164,0.103334,96773.0,96770.0,0.023]
[1732461672375,0.103334,96773.0,96769.0,0.2308543]
[1732461672376,0.103334,96773.0,96769.0,0.023]
[1732461672612,0.206662,96776.0,96769.0,0.023]
[1732461672845,0.103333,96775.0,96769.0,0.023]
[1732461673078,0.206664,96775.0,96769.0,0.023]
[1732461673302,0.103334,96774.0,96769.0,0.023]
[1732461673529,0.000857,96779.0,96769.0,0.023]
[1732461673756,0.000857,96779.0,96772.0,0.082667]
[1732461673989,0.000857,96779.0,96773.0,0.105667]
[1732461674222,0.000857,96779.0,96771.0,0.023]
[1732461674223,0.10333,96777.0,96771.0,0.023]
[1732461674470,0.104185,96779.0,96771.0,0.023]
[1732461674717,0.104186,96779.0,96773.0,0.023]
[1732461674957,0.10333,96777.0,96770.0,0.023]
[1732461675169,0.104185,96779.0,96770.0,0.082669]
[1732461675383,0.000857,96779.0,96771.0,0.023]
[1732461675605,0.000857,96779.0,96769.0,0.023]
[1732461675606,0.103331,96777.0,96769.0,0.023]
[1732461675816,0.103331,96777.0,96769.0,0.10567]
[1732461676246,0.000857,96779.0,96769.0,0.023]
[1732461676502,0.103332,96776.0,96769.0,0.023]
[1732461677164,0.000857,96779.0,96769.0,0.023]
[1732461677373,0.206658,96778.0,96769.0,0.023]
[1732461677584,0.000857,96779.0,96769.0,0.023]
[1732461677585,0.103331,96777.0,96769.0,0.023]
[1732461677854,0.103331,96777.0,96769.0,0.105671]
[1732461678988,0.103332,96776.0,96769.0,0.105671]
[1732461679435,0.103333,96775.0,96769.0,0.023]
[1732461679651,0.000857,96779.0,96769.0,0.023]
[1732461679916,0.103331,96777.0,96769.0,0.10567]
[1732461680101,0.103332,96776.0,96769.0,0.10567]
[1732461681217,0.103332,96775.0,96769.0,0.023]
[1732461681718,0.206658,96778.0,96769.0,0.023]
[1732461681967,0.206658,96778.0,96768.0,0.1267]
[1732461682207,0.103338,96769.0,96768.0,0.1497]
[1732461682661,0.20666,96777.0,96768.0,0.1497]
[1732461682907,0.000857,96779.0,96768.0,0.1497]
[1732461683139,0.103338,96769.0,96768.0,0.1497]
[1732461683841,0.000857,96779.0,96768.0,0.1497]
[1732461684073,0.103338,96769.0,96768.0,0.1497]
[1732461684777,0.103338,96770.0,96768.0,0.1497]
[1732461685656,0.206671,96773.0,96768.0,0.1497]
[1732461685869,0.103338,96769.0,96768.0,0.1497]
[1732461686080,0.103338,96770.0,96768.0,0.1497]
[1732461686305,0.0008574,96777.0,96768.0,0.1497]
[1732461686518,0.103336,96772.0,96768.0,0.1497]
[1732461686744,0.103336,96771.0,96768.0,0.1497]
[1732461687160,0.206664,96775.0,96768.0,0.1497]
[1732461687384,0.206667,96774.0,96768.0,0.1497]
[1732461687657,0.103336,96772.0,96768.0,0.1497]
[1732461689418,0.0008574,96777.0,96768.0,0.1497]
[1732461689623,0.103333,96775.0,96768.0,0.1497]
[1732461689840,0.103335,96773.0,96768.0,0.1497]
[1732461690049,0.206664,96775.0,96768.0,0.1497]
[1732461690268,0.103337,96771.0,96768.0,0.1497]
[1732461690477,0.103335,96773.0,96768.0,0.1497]
[1732461690741,0.206667,96774.0,96768.0,0.1497]
[1732461690954,0.103334,96773.0,96768.0,0.1497]
[1732461692231,0.206662,96776.0,96768.0,0.1497]
[1732461692475,0.206664,96776.0,96768.0,0.1497]
[1732461692712,0.0008574,96777.0,96768.0,0.1497]
[1732461692949,0.103334,96774.0,96768.0,0.1497]
[1732461693456,0.0008574,96777.0,96768.0,0.1497]
[1732461693665,0.103335,96773.0,96768.0,0.1497]
[1732461693892,0.0008574,96777.0,96770.0,0.08267]
[1732461694111,0.0008574,96777.0,96774.0,0.023]
[1732461694557,0.0008574,96777.0,96771.0,0.023]
[1732461695636,0.0008574,96777.0,96771.0,0.105669]
[1732461696485,0.103339,96769.0,96761.0,0.082677]
[1732461696709,0.0008574,96777.0,96759.0,0.1256]
[1732461696930,0.30867627,96776.0,96751.0,0.0777]
[1732461697202,0.10201427,96776.0,96751.0,0.0777]
[1732461697458,0.10201427,96776.0,96745.0,0.0017148]
[1732461697459,0.103363,96746.0,96745.0,0.0017148]
[1732461698184,0.35537727,96746.0,96745.0,0.0017148]
[1732461698450,1.85537727,96746.0,96745.0,0.0017148]
[1732461698889,0.35537727,96746.0,96745.0,0.0017148]
[1732461699138,0.39688383,96746.0,96745.0,0.0017148]
[1732461699367,1.89688383,96746.0,96745.0,0.0017148]
[1732461700075,2.01514762,96746.0,96745.0,0.0017148]
[1732461702247,0.51514762,96746.0,96745.0,0.0017148]
[1732461703435,0.41313335,96746.0,96745.0,0.0017148]
[1732461704613,0.26313335,96746.0,96745.0,0.0017148]
[1732461705104,0.14285369,96746.0,96745.0,0.0017148]
[1732461706059,0.24486796,96746.0,96745.0,0.0017148]
[1732461710254,0.39486796,96746.0,96745.0,0.0017148]
[1732461717179,0.41786796,96746.0,96745.0,0.0017148]
[1732461720205,0.41872536,96746.0,96745.0,0.0017148]
[1732461720678,0.29371109,96746.0,96745.0,0.0017148]
[1732461722518,0.41872536,96746.0,96745.0,0.0017148]
[1732461722762,0.49882536,96746.0,96745.0,0.0017148]
[1732461723235,2.00082536,96746.0,96745.0,0.0017148]
[1732461723466,2.19882536,96746.0,96745.0,0.0017148]
[1732461723684,2.40082536,96746.0,96745.0,8e-07]
[1732461729480,2.46522335,96746.0,96745.0,8e-07]
[1732461729726,2.47944039,96746.0,96745.0,8e-07]
[1732461730689,2.59964055,96746.0,96745.0,8e-07]
[1732461730932,2.56772552,96746.0,96745.0,8e-07]
[1732461731385,2.59966082,96746.0,96745.0,8e-07]
[1732461733009,2.61042824,96746.0,96745.0,8e-07]
[1732461734460,3.14772824,96746.0,96745.0,8e-07]
[1732461736135,3.14772824,96746.0,96702.0,0.0459]
[1732461736136,0.253409,96703.0,96702.0,0.0459]
[1732461739678,0.29621381,96703.0,96702.0,0.0459]
[1732461740372,0.25341,96702.0,96701.0,0.0008582]
[1732461747710,0.0017156,96703.0,96701.0,0.0008582]
[1732461747942,0.0017156,96703.0,96702.0,0.205828]
[1732461748193,0.206772,96725.0,96719.0,0.082713]
[1732461748495,0.01076709,96720.0,96719.0,0.082713]
[1732461748656,0.01076709,96720.0,96713.0,0.082718]
[1732461748657,0.04231093,96738.0,96718.0,0.23085664]
[1732461748875,0.206748,96737.0,96722.0,0.0756]
[1732461749085,0.206748,96736.0,96725.0,0.082707]
[1732461749510,0.103378,96732.0,96727.0,0.082706]
[1732461749766,0.30959767,96746.0,96724.0,0.0475]
[1732461749767,0.103385,96725.0,96724.0,0.0475]
[1732461749971,0.10287167,96746.0,96721.0,0.23113314]
[1732461749972,0.206752,96734.0,96721.0,0.23113314]
[1732461750177,0.206752,96734.0,96712.0,0.0475]
[1732461750178,0.103396,96715.0,96714.0,0.23113314]
[1732461750386,0.103396,96715.0,96712.0,0.0475]
[1732461750387,0.103398,96713.0,96712.0,0.0475]
[1732461751046,0.206776,96723.0,96712.0,0.0475]
[1732461751235,0.15,96732.0,96712.0,0.0475]
[1732461751236,0.15,96730.0,96712.0,0.0475]
[1732461751439,0.103397,96715.0,96712.0,0.27863314]
[1732461751690,0.206788,96717.0,96712.0,0.27863314]
[1732461751691,0.103396,96716.0,96713.0,0.23113314]
[1732461751902,0.206788,96717.0,96712.0,0.0475]
[1732461751903,0.103396,96715.0,96712.0,0.0475]
[1732461752131,0.103398,96713.0,96712.0,0.0475]
[1732461752630,0.103397,96715.0,96712.0,0.0475]
[1732461752855,0.103397,96714.0,96712.0,0.0475]
[1732461753089,0.103397,96715.0,96712.0,0.27874473]
[1732461753306,0.103398,96714.0,96712.0,0.0475]
[1732461753514,0.103398,96714.0,96712.0,0.27874473]
[1732461753731,0.206791,96716.0,96712.0,0.27874473]
[1732461753732,0.103398,96713.0,96712.0,0.27874473]
[1732461753972,0.103398,96713.0,96712.0,0.0475]
[1732461755060,0.20678,96721.0,96712.0,0.0475]
[1732461755555,0.14665569,96730.0,96723.0,0.082709]
[1732461755795,0.0008574,96746.0,96725.0,0.082708]
[1732461756033,0.10201427,96745.0,96725.0,0.23124473]
[1732461756234,0.10201427,96745.0,96724.0,0.0475]
[1732461756235,0.103382,96728.0,96726.0,0.23124645]
[1732461756458,0.103382,96728.0,96724.0,0.0475]
[1732461756459,0.103385,96725.0,96724.0,0.27874645]
[1732461756678,0.103385,96725.0,96724.0,0.0475]
[1732461757138,0.103388,96723.0,96722.0,0.0756]
[1732461757348,0.0008578,96725.0,96713.0,0.0475]
[1732461757567,0.0008578,96725.0,96712.0,0.30684645]
[1732461757568,0.103398,96713.0,96712.0,0.0756]
[1732461760203,0.103398,96713.0,96703.0,0.0475]
[1732461760204,0.103406,96706.0,96705.0,0.23124645]
[1732461760684,0.103406,96706.0,96703.0,0.1231]
[1732461760904,0.103406,96706.0,96705.0,0.23138106]
[1732461761377,0.103406,96706.0,96703.0,0.1231]
[1732461761378,0.206794,96715.0,96703.0,0.1231]
[1732461761603,0.206783,96720.0,96708.0,0.23139831]
[1732461761604,0.103403,96709.0,96708.0,0.23139831]
[1732461762034,0.206802,96711.0,96708.0,0.23139831]
[1732461762246,0.103402,96709.0,96708.0,0.23139713]
[1732461763743,0.103402,96709.0,96708.0,0.23145488]
[1732461763956,0.206799,96712.0,96706.0,0.23145488]
[1732461764156,0.206803,96710.0,96707.0,0.23145488]
[1732461764576,0.0420008,96720.0,96709.0,0.23148271]
[1732461764799,0.103401,96710.0,96709.0,0.23051323]
[1732461765471,0.103401,96710.0,96703.0,0.1231]
[1732461765472,0.103404,96708.0,96703.0,0.1231]
[1732461765703,0.206776,96723.0,96703.0,0.1231]
[1732461765911,0.14443026,96724.0,96703.0,0.1231]
[1732461765912,0.20678,96721.0,96703.0,0.1231]
[1732461766129,0.04241599,96724.0,96704.0,0.082726]
[1732461766362,0.206776,96723.0,96705.0,0.082725]
[1732461766576,0.206776,96723.0,96706.0,0.082724]
[1732461766577,0.103397,96715.0,96706.0,0.082724]
[1732461766790,0.103397,96715.0,96708.0,0.082723]
[1732461767008,0.310186,96716.0,96707.0,0.082723]
[1732461767251,0.206776,96723.0,96705.0,0.27702797]
[1732461767462,0.1034,96712.0,96706.0,0.082724]
[1732461767813,0.206776,96723.0,96705.0,0.27702797]
[1732461767894,0.206778,96722.0,96707.0,0.27702797]
[1732461768123,0.04184386,96725.0,96708.0,0.082723]
[1732461768124,0.103397,96714.0,96708.0,0.082723]
[1732461768360,0.04184386,96725.0,96707.0,0.27702797]
[1732461768571,0.103398,96714.0,96708.0,0.27702797]
[1732461768784,0.103398,96714.0,96707.0,0.35975097]
[1732461769223,0.103398,96714.0,96708.0,0.082723]
[1732461769429,0.206773,96724.0,96706.0,0.35975197]
[1732461769655,0.206773,96724.0,96708.0,0.27702797]
[1732461769656,0.103399,96713.0,96708.0,0.27702797]
[1732461770072,0.103399,96713.0,96707.0,0.082724]
[1732461770073,0.04184386,96725.0,96707.0,0.27702797]
[1732461770311,0.103399,96713.0,96707.0,0.27702797]
[1732461770539,0.103399,96713.0,96705.0,0.35975297]
[1732461770770,0.103399,96713.0,96706.0,0.082724]
[1732461771246,0.103399,96713.0,96705.0,0.27702797]
[1732461771468,0.24861486,96725.0,96708.0,0.27702797]
[1732461771691,0.24861486,96725.0,96704.0,0.082726]
[1732461771692,0.103395,96716.0,96715.0,0.23160331]
[1732461771928,0.103397,96715.0,96708.0,0.082723]
[1732461772134,0.103397,96715.0,96707.0,0.27702797]
[1732461772135,0.04184386,96725.0,96707.0,0.27702797]
[1732461772362,0.103399,96713.0,96708.0,0.27702797]
[1732461772574,0.103399,96713.0,96705.0,0.082725]
[1732461772575,0.103399,96712.0,96707.0,0.27702797]
[1732461773003,0.103398,96714.0,96708.0,0.27702797]
[1732461773218,0.04184386,96725.0,96708.0,0.27702797]
[1732461773430,0.206773,96724.0,96716.0,0.23159779]
[1732461773695,0.103394,96717.0,96716.0,0.23159779]
[1732461773912,0.0008578,96725.0,96719.0,0.082713]
[1732461774362,0.0008578,96725.0,96724.0,0.082709]
[1732461774589,0.0008578,96725.0,96724.0,0.211609]
[1732461774811,0.0008578,96725.0,96724.0,0.21264273]
[1732461775020,0.103369,96741.0,96724.0,0.21264273]
[1732461775236,0.11291245,96745.0,96739.0,0.082696]
[1732461775509,0.11291245,96745.0,96741.0,0.082694]
[1732461775725,0.11291245,96745.0,96744.0,0.082692]
[1732461775939,0.0008574,96746.0,96742.0,0.27781848]
[1732461776171,0.0008574,96746.0,96741.0,0.27781848]
[1732461776388,0.0008574,96746.0,96744.0,0.082691]
[1732461776625,0.0008574,96746.0,96745.0,0.082691]
[1732461776854,0.0008574,96746.0,96741.0,0.27781848]
[1732461777092,0.0008574,96746.0,96740.0,0.36051348]
[1732461777330,0.0008574,96746.0,96743.0,0.23125728]
[1732461777543,0.0008574,96746.0,96745.0,0.23125728]
[1732461777759,0.0008574,96746.0,96744.0,0.23125728]
[1732461777988,0.0008574,96746.0,96743.0,0.31395028]
[1732461778199,0.0008574,96746.0,96744.0,0.23125728]
[1732461778418,0.0008574,96746.0,96743.0,0.31395028]
[1732461778628,0.0008574,96746.0,96744.0,0.082692]
[1732461778837,0.0008574,96746.0,96744.0,0.31394928]
[1732461779059,0.0008574,96746.0,96745.0,0.082691]
[1732461779279,0.0008574,96746.0,96743.0,0.31394928]
[1732461779488,0.0008574,96746.0,96743.0,0.165384]
[1732461779933,0.0008574,96746.0,96738.0,0.208196]
[1732461779934,0.0008574,96746.0,96742.0,0.082693]
[1732461780172,0.0008574,96746.0,96738.0,0.1255]
[1732461780384,0.0008574,96746.0,96729.0,0.27750873]
[1732461780385,0.0008574,96746.0,96735.0,0.23125728]
[1732461780636,0.0008574,96746.0,96734.0,0.23125728]
[1732461780859,0.0008574,96746.0,96738.0,0.082697]
[1732461781093,0.0008574,96746.0,96735.0,0.23229101]
[1732461781322,0.00058349,96746.0,96740.0,0.082695]
[1732461781561,0.00058349,96746.0,96742.0,0.082693]
[1732461782009,0.00058349,96746.0,96740.0,0.082695]
[1732461782220,0.00058349,96746.0,96742.0,0.082693]
[1732461782476,0.00058349,96746.0,96736.0,0.082699]
[1732461782678,0.103364,96745.0,96738.0,0.082697]
[1732461782894,0.103364,96745.0,96736.0,0.082699]
[1732461782895,0.00058349,96746.0,96740.0,0.082695]
[1732461783606,0.00058349,96746.0,96743.0,0.082693]
[1732461784057,0.00058349,96746.0,96744.0,0.082691]
[1732461784259,0.00058349,96746.0,96745.0,0.082691]
[1732461786832,0.103364,96745.0,96744.0,0.0499]
[1732461788181,0.00058349,96746.0,96744.0,0.0499]
[1732461788393,0.103364,96745.0,96744.0,0.0499]
[1732461790215,0.103375,96735.0,96734.0,0.0499]
[1732461790462,0.103375,96735.0,96732.0,0.23087338]
[1732461790463,0.103378,96732.0,96730.0,0.23087338]
[1732461790669,0.103378,96732.0,96727.0,0.23087338]
[1732461791534,0.103378,96732.0,96728.0,0.23087338]
[1732461791751,0.103378,96732.0,96727.0,0.23087338]
[1732461792208,0.103378,96732.0,96728.0,0.23087338]
[1732461792850,0.206754,96734.0,96727.0,0.23087338]
[1732461793094,0.04290685,96746.0,96724.0,0.36027338]
[1732461793327,0.103385,96725.0,96724.0,0.23087338]
[1732461793597,0.103386,96724.0,96723.0,0.23102095]
[1732461793803,0.206771,96725.0,96722.0,0.23102095]
[1732461794014,0.103388,96723.0,96722.0,0.23102095]
[1732461794725,0.002,96769.0,96722.0,0.23102095]
[1732461794953,0.002,96769.0,96717.0,0.162215]
[1732461794954,0.103386,96725.0,96724.0,0.23102095]
[1732461795176,0.206743,96738.0,96723.0,0.23102095]
[1732461795401,0.103381,96729.0,96725.0,0.23102095]
[1732461795611,0.103381,96729.0,96724.0,0.00103373]
[1732461795612,1.54279366,96746.0,96731.0,0.0017142]
[1732461795843,0.103378,96732.0,96731.0,0.0017142]
[1732461801911,0.1451963,96732.0,96731.0,0.0017142]
[1732461802593,0.103378,96732.0,96731.0,0.0017142]
[1732461807936,0.20674,96740.0,96731.0,0.0017142]
[1732461807937,0.103371,96739.0,96732.0,0.0452]
[1732461808182,0.103373,96737.0,96733.0,0.10201427]
[1732461808410,0.0419031,96744.0,96733.0,0.10201427]
[1732461808624,0.103372,96738.0,96735.0,0.23120286]
[1732461808848,0.103372,96738.0,96734.0,0.23120286]
[1732461809118,0.103374,96736.0,96735.0,0.23120286]
[1732461809336,0.0419799,96746.0,96733.0,0.33321713]
[1732461809554,0.0419799,96746.0,96735.0,0.23120286]
[1732461809771,0.103373,96737.0,96736.0,0.23120286]
[1732461810019,0.103375,96735.0,96734.0,0.23126129]
[1732461810236,0.0419799,96746.0,96733.0,0.23126498]
[1732461810464,0.103378,96732.0,96731.0,0.0017142]
[1732461813073,0.15,96756.0,96731.0,0.18643047]
[1732461813290,0.103373,96737.0,96732.0,0.18471527]
[1732461813926,0.206729,96745.0,96740.0,0.0001]
[1732461814154,0.103368,96741.0,96740.0,0.0001]
[1732461817632,0.14594091,96741.0,96740.0,0.0001]
[1732461818507,1.64594091,96741.0,96740.0,0.0001]
[1732461819138,0.14594091,96741.0,96740.0,0.0001]
[1732461821984,0.39795518,96741.0,96740.0,0.0001]
[1732461822227,0.44745518,96741.0,96740.0,0.0001]
[1732461822444,0.52785518,96741.0,96740.0,0.0001]
[1732461823077,0.52985518,96741.0,96740.0,0.0001]
[1732461823312,0.52785518,96741.0,96740.0,0.0001]
[1732461823765,2.02785518,96741.0,96740.0,0.0001]
[1732461824620,2.02985518,96741.0,96740.0,0.0001]
[1732461824843,2.04062189,96741.0,96740.0,0.0001]
[1732461827721,2.03862189,96741.0,96740.0,0.0001]
[1732461828939,1.98912189,96741.0,96740.0,0.0001]
[1732461829593,1.90872189,96741.0,96740.0,0.0001]
[1732461829806,0.40872189,96741.0,96740.0,0.0001]
[1732461830238,0.29594091,96741.0,96740.0,0.0001]
[1732461833192,0.29594091,96741.0,96740.0,0.0018142]
[1732461837804,1.79594091,96741.0,96740.0,0.0018142]
[1732461840813,0.29594091,96741.0,96740.0,0.0018142]
[1732461841287,1.79594091,96741.0,96740.0,0.0018142]
[1732461842835,0.29594091,96741.0,96740.0,0.0018142]
[1732461844561,0.29594091,96741.0,96740.0,0.0017142]
[1732461846780,1.79594091,96741.0,96740.0,0.0017142]
[1732461848507,0.103368,96741.0,96740.0,0.0017142]
[1732461849040,0.103367,96742.0,96741.0,0.0794]
[1732461849482,0.103367,96742.0,96741.0,0.31105317]
[1732461849706,0.103367,96742.0,96741.0,0.0794]
[1732461851859,0.103367,96742.0,96741.0,0.31102086]
[1732461852087,0.103367,96742.0,96741.0,0.31102118]
[1732461852304,0.103367,96742.0,96741.0,0.23161371]
[1732461852545,0.103368,96741.0,96740.0,0.0017142]
[1732461864957,1.603368,96741.0,96740.0,0.0017142]
[1732461865883,0.103368,96741.0,96740.0,0.0017142]
[1732461866119,0.103268,96741.0,96740.0,0.0017142]
[1732461866850,0.43088227,96741.0,96740.0,0.0017142]
[1732461867070,0.43288227,96741.0,96740.0,2e-07]
[1732461867292,0.253378,96732.0,96731.0,0.0017142]
[1732461867511,1.85539227,96732.0,96731.0,0.0017142]
[1732461870578,1.89756058,96732.0,96731.0,0.0017142]
[1732461871690,0.39756058,96732.0,96731.0,0.0017142]
[1732461875665,2.02166058,96732.0,96731.0,0.0017142]
[1732461876326,2.02166058,96732.0,96731.0,0.00129323]
[1732461876803,2.04218434,96732.0,96731.0,0.00129323]
[1732461878377,2.26518434,96732.0,96731.0,2.3e-07]
[1732461878596,0.476385,96725.0,96724.0,4.3e-07]
[1732461878833,0.65399927,96725.0,96724.0,4.3e-07]
[1732461879309,2.15399927,96725.0,96724.0,4.3e-07]
[1732461880880,0.103409,96703.0,96702.0,0.00014538]
[1732461882450,0.103409,96703.0,96702.0,0.04824538]
[1732461887015,0.103409,96703.0,96702.0,0.00014538]
[1732461888747,0.253409,96703.0,96702.0,0.00014538]
[1732461888965,1.753409,96703.0,96702.0,0.00014538]
[1732461890550,0.253409,96703.0,96702.0,0.00014538]
[1732461890986,1.753409,96703.0,96702.0,0.00014538]
[1732461891631,1.85542327,96703.0,96702.0,0.00014538]
[1732461892279,1.85713827,96703.0,96702.0,0.00014538]
[1732461893324,1.90253827,96703.0,96702.0,0.00014538]
[1732461893967,0.40253827,96703.0,96702.0,0.00014538]
[1732461894639,1.90253827,96703.0,96702.0,0.00014538]
[1732461899320,1.90253827,96703.0,96702.0,6.867e-05]
[1732461900193,1.90253827,96703.0,96701.0,0.0008582]
[1732461900194,0.27641,96702.0,96701.0,8.7e-07]
[1732461900411,0.46162427,96702.0,96701.0,8.7e-07]
[1732461900633,0.66162427,96702.0,96701.0,8.7e-07]
[1732461900858,0.2,96700.0,96690.0,0.0002]
[1732461901068,0.338622,96691.0,96690.0,0.0002]
[1732461901280,0.44063627,96691.0,96690.0,0.0002]
[1732461902453,1.94063627,96691.0,96690.0,0.0002]
[1732461903163,1.98244696,96691.0,96690.0,0.0002]
[1732461903834,1.98244696,96691.0,96690.0,0.0010575]
[1732461904268,2.05084696,96691.0,96690.0,0.0010575]
[1732461905124,2.05084696,96691.0,96662.0,0.081]
[1732461905125,0.103438,96676.0,96662.0,0.081]
[1732461905336,0.35545227,96676.0,96662.0,0.081]
[1732461908222,0.39822157,96676.0,96662.0,0.081]
[1732461908444,0.39822157,96676.0,96642.0,0.11014516]
[1732461908445,0.29478357,96676.0,96642.0,0.11014516]
[1732461908771,0.253454,96661.0,96646.0,0.0484]
[1732461908975,0.35546827,96661.0,96642.0,0.11]
[1732461909178,1.85546827,96661.0,96642.0,0.11]
[1732461909385,1.753454,96661.0,96657.0,0.0781]
[1732461910028,0.253454,96661.0,96657.0,0.0781]
[1732461910897,0.29525084,96661.0,96657.0,0.0781]
[1732461911101,0.29525084,96661.0,96651.0,0.0781]
[1732461911958,0.206905,96663.0,96651.0,0.0781]
[1732461911959,0.15,96662.0,96655.0,0.082768]
[1732461912167,0.2,96693.0,96661.0,0.1265]
[1732461912168,0.0802,96693.0,96661.0,0.1265]
[1732461912401,0.04238015,96674.0,96661.0,0.1265]
[1732461912634,0.103452,96663.0,96661.0,0.1265]
[1732461912843,0.10201427,96683.0,96661.0,0.1265]
[1732461913260,0.206865,96681.0,96661.0,0.1265]
[1732461913513,0.10201427,96680.0,96661.0,0.1265]
[1732461913742,0.103445,96669.0,96661.0,0.1265]
[1732461914004,0.15,96670.0,96661.0,0.1265]
[1732461914205,0.103453,96662.0,96661.0,0.1265]
[1732461914633,0.206893,96668.0,96661.0,0.1265]
[1732461914835,0.15,96670.0,96661.0,0.1265]
[1732461914836,0.206895,96667.0,96661.0,0.1265]
[1732461915039,0.103447,96668.0,96661.0,0.1265]
[1732461915337,0.15,96670.0,96661.0,0.1265]
[1732461915543,0.206893,96668.0,96661.0,0.1265]
[1732461915748,0.15,96679.0,96662.0,0.082762]
[1732461915965,0.14372298,96680.0,96661.0,0.1265]
[1732461915966,0.15,96670.0,96664.0,0.08276]
[1732461916175,0.103445,96669.0,96661.0,0.1265]
[1732461916386,0.103453,96662.0,96661.0,0.1265]
[1732461916631,0.15,96670.0,96664.0,0.08276]
[1732461916843,0.15,96675.0,96661.0,0.1265]
[1732461917087,0.0017152,96696.0,96674.0,0.1265]
[1732461917305,0.0017152,96696.0,96676.0,0.1265]
[1732461917518,0.0017152,96696.0,96684.0,0.0781]
[1732461917762,0.103428,96685.0,96684.0,0.0781]
[1732461918005,0.103436,96678.0,96677.0,0.0484]
[1732461918217,0.20684,96693.0,96663.0,0.23103907]
[1732461918218,0.103448,96666.0,96665.0,0.0484]
[1732461919616,0.103454,96661.0,96660.0,0.5008576]
[1732461920060,0.253454,96661.0,96660.0,0.5008576]
[1732461922005,0.253454,96661.0,96660.0,0.50049292]
[1732461922449,0.29593444,96661.0,96660.0,0.50049292]
[1732461922664,1.79593444,96661.0,96660.0,0.50049292]
[1732461924192,1.79593444,96661.0,96660.0,0.49925902]
[1732461925578,0.29593444,96661.0,96660.0,0.49925902]
[1732461926065,1.79593444,96661.0,96660.0,0.49925902]
[1732461926299,1.89794871,96661.0,96660.0,0.49925902]
[1732461926948,1.97414871,96661.0,96660.0,0.49925902]
[1732461929670,2.08294721,96661.0,96660.0,0.49925902]
[1732461929889,2.30594721,96661.0,96660.0,0.49925902]
[1732461930117,2.55544721,96661.0,96660.0,0.39407739]
[1732461930520,2.55544721,96661.0,96660.0,0.25778335]
[1732461930521,3.09274721,96661.0,96660.0,0.25778335]
[1732461930970,3.11649649,96661.0,96660.0,0.25778335]
[1732461931175,3.09274721,96661.0,96660.0,0.25778335]
[1732461931399,3.09274721,96661.0,96660.0,0.15432835]
[1732461931966,0.202,96643.0,96642.0,0.11]
[1732461932173,0.83235943,96643.0,96642.0,0.11]
[1732461932372,0.81030317,96643.0,96642.0,0.11]
[1732461932581,2.33235943,96643.0,96642.0,0.11]
[1732461932766,2.35610871,96643.0,96642.0,0.11]
[1732461933190,2.31030317,96643.0,96642.0,0.089305]
[1732461934292,2.10830317,96643.0,96642.0,0.089305]
[1732461934455,2.06080317,96643.0,96642.0,0.089305]